bitfinex/quotes_SOLUSD_20240813
["timestamp","ask_amount","ask_price","bid_price","bid_amount"]
[1723555751837,6.8407,146.19,146.17,0.12549]
[1723555752013,6.8407,146.19,146.17,0.37647]
[1723555752201,6.8407,146.19,146.18,0.12549]
[1723555752538,6.8407,146.19,146.18,0.37647]
[1723555752709,6.84,146.2,146.19,0.12549]
[1723555752901,6.84,146.2,146.19,0.37647]
[1723555753231,42.19074071,146.24,146.19,0.37647]
[1723555753433,6.8393,146.22,146.2,0.12549]
[1723555753606,6.8394,146.21,146.2,0.37647]
[1723555753800,6.8391,146.22,146.21,0.12549]
[1723555754001,6.8391,146.22,146.21,0.37647]
[1723555754401,6.84,146.2,146.16,62.1044]
[1723555754604,6.8404,146.19,146.17,0.12549]
[1723555754910,6.8404,146.19,146.17,0.50196]
[1723555755125,6.8401,146.2,146.17,0.50196]
[1723555755327,56.5556,146.24,146.17,7.34306]
[1723555755636,6.8396,146.21,146.19,0.12549]
[1723555755836,6.8391,146.22,146.19,0.50196]
[1723555756840,6.8396,146.21,146.19,0.50196]
[1723555757136,17.0943,146.25,146.19,0.50196]
[1723555757313,20.0,146.24,146.19,0.50196]
[1723555757702,6.8393,146.22,146.19,0.50196]
[1723555758740,6.8394,146.21,146.19,0.50196]
[1723555759246,6.8399,146.2,146.19,0.37647]
[1723555759403,31.49,146.22,146.13,17.1071]
[1723555759600,6.8411,146.18,146.14,6.8423]
[1723555759806,6.8405,146.19,146.15,6.8422]
[1723555760728,6.8405,146.19,146.17,0.12549]
[1723555761505,6.8408,146.18,146.17,0.12549]
[1723555762007,6.8413,146.17,146.16,45.25098]
[1723555762542,6.8413,146.17,146.16,0.37647]
[1723555763050,6.8413,146.17,146.16,0.12549]
[1723555763256,18.81171992,146.19,146.12,15.2154]
[1723555763257,6.8425,146.15,146.12,15.2154]
[1723555763436,6.8414,146.17,146.13,6.8432]
[1723555763744,65.6842,146.23,146.12,32.3241]
[1723555763745,31.49,146.22,146.12,15.2154]
[1723555764046,35.4975,146.24,146.16,17.1044]
[1723555764047,46.9875,146.24,146.16,17.1044]
[1723555764259,6.8396,146.21,146.17,6.8412]
[1723555764412,6.8396,146.21,146.19,0.12549]
[1723555765332,31.49,146.22,146.18,45.37647]
[1723555765531,6.8408,146.18,146.17,45.12549]
[1723555765769,6.8408,146.18,146.17,45.37647]
[1723555766230,6.8405,146.19,146.17,45.37647]
[1723555766432,6.8405,146.19,146.17,0.37647]
[1723555766743,6.8408,146.18,146.17,0.37647]
[1723555767858,6.8405,146.19,146.17,0.37647]
[1723555768021,31.49,146.22,146.17,0.37647]
[1723555768214,31.49,146.22,146.19,0.12549]
[1723555768419,6.841,146.18,146.16,45.0]
[1723555768644,6.841,146.18,146.17,0.37647]
[1723555770037,31.49,146.22,146.17,0.37647]
[1723555770254,6.8392,146.22,146.18,6.96629]
[1723555770545,6.8392,146.22,146.19,45.37647]
[1723555770716,6.8395,146.21,146.19,45.37647]
[1723555770915,6.8395,146.21,146.19,0.37647]
[1723555772743,6.8399,146.2,146.19,0.37647]
[1723555772938,6.8399,146.2,146.19,0.50196]
[1723555773561,6.8399,146.2,146.19,0.37647]
[1723555776241,6.8395,146.21,146.19,0.37647]
[1723555776453,6.8399,146.2,146.19,0.37647]
[1723555778434,6.8416,146.17,146.14,0.12549]
[1723555778624,6.8416,146.17,146.14,0.37647]
[1723555779453,6.8406,146.19,146.15,6.8422]
[1723555779656,6.8401,146.2,146.16,7.21817]
[1723555779860,6.8401,146.2,146.17,0.25098]
[1723555780379,6.8395,146.21,146.18,0.37647]
[1723555781372,6.84,146.2,146.18,0.37647]
[1723555781569,6.8404,146.19,146.18,0.37647]
[1723555781782,6.8404,146.19,146.18,0.50196]
[1723555782282,6.8404,146.19,146.18,0.25098]
[1723555782644,6.8398,146.21,146.18,0.25098]
[1723555782851,6.8398,146.21,146.19,0.12549]
[1723555783346,6.8398,146.21,146.19,0.25098]
[1723555783576,6.8398,146.21,146.2,0.12549]
[1723555783892,6.8399,146.2,146.19,0.12549]
[1723555784744,6.8396,146.21,146.19,0.12549]
[1723555784944,6.8392,146.22,146.2,0.12549]
[1723555785168,6.8392,146.22,146.2,0.37647]
[1723555785363,6.8392,146.22,146.21,0.12549]
[1723555785659,6.839,146.22,146.21,0.12549]
[1723555792154,6.8386,146.23,146.21,0.12549]
[1723555792357,6.8386,146.23,146.22,0.12549]
[1723555792667,6.8386,146.23,146.22,0.37647]
[1723555793382,22.07219,146.28,146.22,0.50196]
[1723555793554,6.8376,146.25,146.23,0.12549]
[1723555793753,6.8376,146.25,146.24,0.12549]
[1723555794058,6.8376,146.25,146.24,0.25098]
[1723555794862,6.838,146.24,146.23,0.12549]
[1723555795177,6.8385,146.23,146.22,45.0]
[1723555795775,6.8385,146.23,146.22,45.12549]
[1723555796491,6.8385,146.23,146.22,45.37647]
[1723555797467,6.8401,146.2,146.16,6.8417]
[1723555798666,6.8401,146.2,146.17,45.50196]
[1723555799586,6.8401,146.2,146.17,52.34326]
[1723555799959,6.8401,146.2,146.17,45.50196]
[1723555800289,6.5722,146.24,146.19,0.12549]
[1723555800469,6.8399,146.2,146.19,45.0]
[1723555800829,38.3294,146.22,146.19,0.12549]
[1723555801090,6.8388,146.23,146.19,6.96559]
[1723555801249,6.5722,146.24,146.2,0.12549]
[1723555801250,6.8394,146.21,146.2,0.12549]
[1723555801665,18.80634673,146.23,146.17,0.25098]
[1723555801902,31.49,146.2,146.12,15.1948]
[1723555802104,31.49,146.18,146.08,129.58653201]
[1723555802265,37.604,146.18,146.08,32.2748]
[1723555802480,6.8441,146.11,146.08,15.1618]
[1723555802772,6.8446,146.1,146.05,23.9635]
[1723555802994,31.49,146.14,146.04,15.3566]
[1723555802995,6.8459,146.08,146.04,15.3566]
[1723555803184,6.8451,146.09,146.04,6.8473]
[1723555803407,54.8265,146.12,146.04,6.8473]
[1723555803408,37.7167,146.12,146.04,17.1176]
[1723555803617,6.8442,146.11,146.07,6.8459]
[1723555803794,6.8447,146.1,146.06,6.8463]
[1723555804024,44.5608,146.12,146.06,6.8463]
[1723555804291,44.5608,146.12,146.07,45.37647]
[1723555804605,6.8466,146.06,146.01,17.1215]
[1723555804909,6.8466,146.06,146.01,23.97]
[1723555805192,31.49,146.08,146.01,6.8486]
[1723555805370,31.49,146.08,146.01,6.8487]
[1723555805568,31.49,146.06,145.96,15.8954]
[1723555805795,6.848,146.03,145.98,23.9749]
[1723555805999,6.8485,146.02,145.98,17.1251]
[1723555806691,6.8485,146.02,145.98,23.9753]
[1723555807073,6.8484,146.02,145.97,6.8506]
[1723555807395,6.848,146.03,145.98,6.8501]
[1723555807605,6.6415,146.06,145.97,34.2531]
[1723555807783,6.8459,146.08,146.02,17.1204]
[1723555807978,31.49,146.08,145.99,17.1239]
[1723555808592,6.8461,146.07,146.02,0.12549]
[1723555808918,37.5105,146.1,146.04,17.1182]
[1723555809204,15.7896,146.12,146.05,45.0]
[1723555809205,6.8465,146.06,146.05,45.0]
[1723555809791,6.846,146.07,146.05,45.0]
[1723555809997,31.49,146.1,146.06,0.12549]
[1723555810327,15.7896,146.12,146.08,0.12549]
[1723555810328,6.8442,146.11,146.08,0.12549]
[1723555810501,6.8442,146.11,146.08,0.50196]
[1723555811078,6.5958,146.14,146.08,0.50196]
[1723555811274,6.5958,146.14,146.08,17.61506]
[1723555811481,31.49,146.16,146.1,0.12549]
[1723555811689,6.5492,146.18,146.14,0.12549]
[1723555811904,46.7911,146.21,146.15,0.12549]
[1723555812098,46.7911,146.21,146.15,0.50196]
[1723555812399,31.49,146.21,146.15,45.50196]
[1723555812573,6.0932,146.22,146.15,45.50196]
[1723555812776,31.49,146.25,146.17,0.12549]
[1723555812976,31.49,146.25,146.17,45.50196]
[1723555813184,31.49,146.23,146.17,45.50196]
[1723555813531,6.8407,146.19,146.17,45.50196]
[1723555813686,6.8408,146.18,146.17,45.0]
[1723555814402,6.8419,146.16,146.11,0.12549]
[1723555814602,39.38,146.21,146.15,0.12549]
[1723555814819,39.38,146.21,146.15,45.50196]
[1723555814820,20.0,146.2,146.15,45.50196]
[1723555815314,6.8395,146.21,146.16,6.8417]
[1723555815606,6.3917,146.26,146.15,45.50196]
[1723555815607,6.839,146.22,146.18,0.12549]
[1723555815897,6.3917,146.26,146.18,45.25098]
[1723555816072,6.3917,146.26,146.2,0.12549]
[1723555816275,39.38,146.29,146.2,0.25098]
[1723555816703,39.38,146.29,146.22,0.12549]
[1723555817018,6.8363,146.28,146.24,0.12549]
[1723555817215,6.8366,146.27,146.24,0.25098]
[1723555817390,6.8366,146.27,146.25,0.12549]
[1723555817810,6.8375,146.26,146.25,0.12549]
[1723555817992,6.8376,146.25,146.24,45.25098]
[1723555818188,39.38,146.29,146.24,45.37647]
[1723555818391,56.4676,146.31,146.26,0.12549]
[1723555818688,17.0876,146.31,146.26,0.25098]
[1723555818894,6.8361,146.29,146.27,0.12549]
[1723555819085,6.8361,146.29,146.27,0.25098]
[1723555819315,6.8366,146.27,146.26,0.12549]
[1723555819494,39.38,146.33,146.26,0.25098]
[1723555819702,6.8361,146.29,146.27,0.12549]
[1723555820215,6.8362,146.28,146.27,0.12549]
[1723555820392,39.38,146.33,146.28,0.12549]
[1723555820591,0.8187459,146.34,146.28,0.12549]
[1723555820901,3.5574149,146.34,146.28,0.37647]
[1723555821108,6.8346,146.32,146.29,0.12549]
[1723555821415,39.38,146.33,146.28,45.25098]
[1723555821619,39.38,146.31,146.18,38.6435]
[1723555821798,39.38,146.31,146.22,6.8389]
[1723555821799,6.8372,146.26,146.22,6.8389]
[1723555822207,56.4699,146.29,146.2,17.0991]
[1723555822510,6.8383,146.24,146.2,17.0991]
[1723555822710,39.38,146.27,146.2,6.8398]
[1723555823210,6.8365,146.28,146.23,6.8385]
[1723555823394,6.8365,146.28,146.18,21.5419]
[1723555823395,6.836,146.29,146.24,23.9327]
[1723555823594,6.836,146.29,146.24,23.9331]
[1723555823813,6.837,146.27,146.23,6.8385]
[1723555823999,6.837,146.27,146.24,45.50196]
[1723555824212,45.6892,146.33,146.24,45.50196]
[1723555824510,20.0,146.32,146.24,0.50196]
[1723555824713,6.8352,146.31,146.24,0.50196]
[1723555825020,37.0865,146.32,146.24,0.50196]
[1723555825391,39.38,146.31,146.24,0.50196]
[1723555825718,6.8362,146.28,146.26,0.12549]
[1723555825888,6.8365,146.28,146.25,45.0]
[1723555826208,6.8365,146.28,146.24,0.25098]
[1723555826209,20.0,146.32,146.24,0.25098]
[1723555826515,6.8361,146.29,146.26,0.12549]
[1723555826703,6.8361,146.29,146.25,45.0]
[1723555826908,6.8366,146.27,146.26,0.12549]
[1723555827107,6.8363,146.28,146.26,0.25098]
[1723555827286,6.8372,146.26,146.22,17.0968]
[1723555827692,17.0898,146.29,146.19,17.1007]
[1723555827918,17.0898,146.29,146.21,17.0977]
[1723555828137,6.8363,146.28,146.23,6.8384]
[1723555828713,6.8367,146.27,146.24,0.12549]
[1723555828890,6.8367,146.27,146.25,0.12549]
[1723555829093,6.8362,146.28,146.25,0.37647]
[1723555829321,6.8358,146.29,146.26,0.12549]
[1723555829513,6.8362,146.28,146.26,0.12549]
[1723555830031,6.8358,146.29,146.26,0.12549]
[1723555830219,6.8366,146.27,146.26,0.12549]
[1723555830534,56.4692,146.3,146.23,6.8383]
[1723555830828,6.8371,146.26,146.22,23.9358]
[1723555831197,56.4692,146.3,146.22,17.0969]
[1723555831435,20.0,146.32,146.18,21.5419]
[1723555831436,17.0932,146.26,146.18,21.5419]
[1723555831593,6.8377,146.25,146.18,21.5419]
[1723555831932,17.09,146.29,146.2,17.0993]
[1723555832099,17.092,146.27,146.17,17.1029]
[1723555832426,39.38,146.22,146.13,6.8428]
[1723555832629,6.8421,146.16,146.1,285.7027]
[1723555832844,17.099,146.21,146.11,17.1098]
[1723555832845,39.38,146.2,146.11,17.1098]
[1723555833124,6.8409,146.18,146.13,6.8428]
[1723555833469,6.8393,146.22,146.17,6.841]
[1723555833595,6.8386,146.23,146.18,6.8408]
[1723555833821,34.1832,146.28,146.22,6.8389]
[1723555833822,39.38,146.28,146.22,6.8389]
[1723555834028,6.8367,146.27,146.23,0.12549]
[1723555834197,6.8367,146.27,146.23,45.50196]
[1723555835099,6.8372,146.26,146.23,45.50196]
[1723555835434,6.8372,146.26,146.25,0.12549]
[1723555835725,6.8372,146.26,146.25,0.37647]
[1723555835931,39.38,146.32,146.25,0.50196]
[1723555836100,3.5574149,146.34,146.27,0.12549]
[1723555836309,3.5574149,146.34,146.31,0.12549]
[1723555836511,3.5574149,146.34,146.31,46.74322868]
[1723555836705,0.8187459,146.34,146.31,46.74322868]
[1723555837014,6.8339,146.33,146.31,46.74322868]
[1723555837198,0.8187459,146.34,146.31,1.74322868]
[1723555837533,0.8187459,146.34,146.33,6.95929]
[1723555837843,0.8187459,146.34,146.33,45.50196]
[1723555838004,0.8187459,146.34,146.33,45.12549]
[1723555838426,0.8187459,146.34,146.33,45.50196]
[1723555838727,0.8187459,146.34,146.33,0.50196]
[1723555838939,0.8187459,146.34,146.33,46.86784972]
[1723555839159,0.8187459,146.34,146.33,45.50196]
[1723555839499,0.8187459,146.34,146.33,0.50196]
[1723555840129,7.6521459,146.34,146.33,1.36531457]
[1723555840442,7.6521459,146.34,146.28,17.0899]
[1723555840618,0.8187459,146.34,146.3,6.8352]
[1723555841007,0.8187459,146.34,146.31,6.8347]
[1723555841219,0.8187459,146.34,146.32,6.8342]
[1723555841415,0.8187459,146.34,146.28,34.1805]
[1723555841416,0.8187459,146.34,146.33,6.8338]
[1723555841622,0.8187459,146.34,146.33,52.33576]
[1723555842136,6.8291,146.44,146.39,6.95619]
[1723555842322,6.0144,146.45,146.41,0.12549]
[1723555842323,6.8283,146.45,146.41,0.12549]
[1723555842536,6.8273,146.47,146.43,6.8291]
[1723555842713,6.8273,146.47,146.44,0.37647]
[1723555843250,0.8187459,146.49,146.44,0.25098]
[1723555843416,6.8283,146.45,146.41,0.12549]
[1723555843616,6.8279,146.46,146.41,7.33196]
[1723555843845,17.8856459,146.49,146.41,0.50196]
[1723555843846,0.8187459,146.49,146.41,0.50196]
[1723555844162,0.8187459,146.49,146.43,0.12549]
[1723555844323,0.8187459,146.49,146.45,0.12549]
[1723555844514,7.6454459,146.49,146.45,45.50196]
[1723555844711,6.8273,146.47,146.45,45.50196]
[1723555845015,6.8278,146.46,146.45,45.0]
[1723555845214,6.8278,146.46,146.36,51.242]
[1723555845215,6.8293,146.43,146.38,6.8314]
[1723555845417,17.0705,146.46,146.39,6.831]
[1723555845635,6.8306,146.4,146.36,6.8324]
[1723555845849,47.16,146.44,146.35,33.2503]
[1723555846047,6.8286,146.45,146.39,6.8306]
[1723555846252,6.8286,146.45,146.4,6.8304]
[1723555846547,6.8279,146.46,146.41,6.8301]
[1723555846853,6.8283,146.45,146.4,23.9061]
[1723555847018,6.8283,146.45,146.41,45.50196]
[1723555847422,6.8289,146.44,146.41,45.50196]
[1723555847736,6.8292,146.43,146.41,45.50196]
[1723555847936,6.8292,146.43,146.41,45.37647]
[1723555848248,17.0706,146.45,146.36,6.8324]
[1723555848549,6.8297,146.42,146.37,6.8319]
[1723555849255,6.8292,146.43,146.38,6.8313]
[1723555849413,47.16,146.44,146.33,17.0841]
[1723555849615,6.8315,146.38,146.33,17.0841]
[1723555849855,47.16,146.41,146.33,17.0841]
[1723555850054,15.7625,146.42,146.36,6.8324]
[1723555850227,6.8301,146.41,146.36,6.8324]
[1723555850430,15.7625,146.42,146.36,6.8324]
[1723555850631,6.831,146.39,146.35,17.0815]
[1723555850971,64.2288,146.47,146.39,6.95639]
[1723555851135,6.8286,146.45,146.41,0.12549]
[1723555851535,6.8278,146.46,146.41,6.95549]
[1723555851749,6.8278,146.46,146.43,0.12549]
[1723555852057,1.7070483,146.47,146.43,0.12549]
[1723555852232,6.8276,146.47,146.43,0.50196]
[1723555852642,6.8278,146.46,146.43,0.50196]
[1723555852859,7.3714459,146.49,146.43,0.50196]
[1723555853064,20.0,146.48,146.43,0.50196]
[1723555853732,6.8282,146.45,146.43,0.50196]
[1723555854063,6.8311,146.39,146.35,13.3894]
[1723555854314,17.0724,146.44,146.35,23.6386]
[1723555854447,47.16,146.47,146.29,17.0892]
[1723555854448,17.0789,146.38,146.29,17.0892]
[1723555854658,47.16,146.41,146.29,17.0892]
[1723555854847,69.8713,146.43,146.27,53.5677]
[1723555855071,47.16,146.4,146.29,6.8356]
[1723555855235,6.8334,146.34,146.3,6.8352]
[1723555855630,6.8329,146.35,146.31,6.8346]
[1723555855881,17.0796,146.38,146.29,23.9241]
[1723555856076,6.8335,146.34,146.29,23.9241]
[1723555856278,6.833,146.35,146.29,17.0889]
[1723555856435,47.16,146.37,146.29,17.0889]
[1723555856436,6.8325,146.36,146.32,6.8343]
[1723555856764,6.8328,146.36,146.29,17.0889]
[1723555856938,47.16,146.4,146.32,6.8339]
[1723555857141,20.0,146.39,146.33,6.8337]
[1723555857471,56.8583,146.43,146.33,17.0839]
[1723555857472,22.7113,146.43,146.33,17.0839]
[1723555857641,6.832,146.37,146.3,34.1762]
[1723555857833,6.8325,146.36,146.33,0.12549]
[1723555858068,6.8333,146.35,146.33,45.37647]
[1723555858268,6.8325,146.36,146.33,45.25098]
[1723555858436,6.8325,146.36,146.33,0.25098]
[1723555858872,6.8307,146.4,146.35,6.95819]
[1723555859175,6.8318,146.38,146.36,45.12549]
[1723555859351,6.8306,146.41,146.37,0.25098]
[1723555859671,6.8306,146.41,146.38,0.12549]
[1723555859869,6.8296,146.42,146.39,0.12549]
[1723555860036,47.16,146.47,146.4,6.8301]
[1723555860235,47.16,146.47,146.42,0.12549]
[1723555860809,0.8187459,146.49,146.42,0.25098]
[1723555861011,6.8273,146.47,146.44,0.12549]
[1723555861180,6.8269,146.48,146.44,0.12549]
[1723555861377,7.6455459,146.49,146.44,52.07928]
[1723555861704,6.8282,146.45,146.44,45.0]
[1723555861887,64.2289,146.47,146.36,17.0805]
[1723555862085,47.16,146.47,146.34,16.259]
[1723555862302,6.8281,146.46,146.38,17.0781]
[1723555862485,6.8281,146.46,146.41,6.83]
[1723555862679,6.8283,146.45,146.41,6.83]
[1723555862912,64.2289,146.47,146.36,17.08]
[1723555863079,6.8295,146.43,146.38,6.8315]
[1723555863278,20.0,146.46,146.39,45.0]
[1723555863279,6.8304,146.41,146.39,45.0]
[1723555863580,47.16,146.44,146.39,45.0]
[1723555863906,6.8328,146.36,146.31,6.8347]
[1723555864096,6.8307,146.4,146.35,6.8325]
[1723555864301,6.0405,146.43,146.36,17.0805]
[1723555864499,6.8306,146.4,146.36,17.0805]
[1723555864693,6.8325,146.36,146.31,6.8346]
[1723555865009,6.0405,146.43,146.29,22.7356]
[1723555865219,6.0405,146.43,146.29,69.8956]
[1723555865377,6.0405,146.43,146.37,6.8319]
[1723555865583,6.0405,146.43,146.39,6.8307]
[1723555865787,6.0405,146.43,146.31,34.1737]
[1723555865982,6.8297,146.42,146.37,6.8316]
[1723555866191,20.0,146.46,146.39,0.12549]
[1723555866484,6.83,146.42,146.39,0.12549]
[1723555866875,6.8293,146.43,146.39,0.12549]
[1723555867509,37.07,146.46,146.39,0.12549]
[1723555867812,6.8306,146.4,146.38,45.37647]
[1723555868307,64.2327,146.44,146.39,45.12549]
[1723555868507,64.2327,146.44,146.4,0.25098]
[1723555868711,47.16,146.44,146.39,0.12549]
[1723555868913,20.0,146.46,146.39,0.12549]
[1723555869240,6.8306,146.4,146.38,0.37647]
[1723555869510,6.8306,146.4,146.38,0.25098]
[1723555870128,47.16,146.44,146.39,0.12549]
[1723555870286,6.8295,146.43,146.39,0.12549]
[1723555870482,6.8301,146.41,146.39,45.0]
[1723555870687,37.0705,146.46,146.38,0.25098]
[1723555870688,6.831,146.39,146.38,0.25098]
[1723555870887,6.8307,146.4,146.38,0.25098]
[1723555871201,47.16,146.44,146.35,17.0818]
[1723555871420,6.8297,146.42,146.35,17.0818]
[1723555871714,6.8297,146.42,146.37,6.8318]
[1723555872025,6.8302,146.41,146.37,6.8319]
[1723555872319,6.8302,146.41,146.35,17.0818]
[1723555872320,6.8278,146.46,146.43,0.12549]
[1723555872617,6.8278,146.46,146.43,45.37647]
[1723555872930,16.1191459,146.49,146.44,0.12549]
[1723555872931,6.827,146.48,146.44,0.12549]
[1723555873138,6.8273,146.47,146.45,0.12549]
[1723555873426,6.8278,146.46,146.44,0.12549]
[1723555873629,6.8279,146.46,146.44,0.37647]
[1723555874040,6.8279,146.46,146.43,45.0]
[1723555874041,6.8287,146.44,146.43,45.0]
[1723555874251,39.23,146.46,146.37,6.8319]
[1723555874252,6.8301,146.41,146.37,6.8319]
[1723555874538,6.8291,146.44,146.39,6.8307]
[1723555874704,39.23,146.48,146.41,6.8299]
[1723555874906,7.6454459,146.49,146.38,39.23]
[1723555875225,0.8187459,146.49,146.44,23.9]
[1723555875533,0.8187459,146.49,146.45,45.0]
[1723555875731,6.8269,146.48,146.46,0.25098]
[1723555875937,0.8187459,146.49,146.46,0.25098]
[1723555876526,6.8288,146.44,146.41,0.12549]
[1723555876850,49.5856307,146.49,146.41,0.37647]
[1723555876851,1.70727006,146.48,146.41,0.37647]
[1723555877140,6.8292,146.43,146.41,0.25098]
[1723555877345,1.70762396,146.42,146.31,17.0861]
[1723555877509,17.0749,146.42,146.31,17.0861]
[1723555877842,17.0749,146.42,146.34,6.833]
[1723555877843,6.8312,146.39,146.34,6.833]
[1723555878209,17.0749,146.42,146.35,6.8328]
[1723555878412,6.8306,146.4,146.35,17.082]
[1723555878737,53.2664,146.43,146.37,6.8318]
[1723555878738,6.8302,146.41,146.37,6.8318]
[1723555878928,34.1411,146.46,146.38,0.12549]
[1723555878929,47.06,146.46,146.38,0.12549]
[1723555879124,6.829,146.44,146.38,0.12549]
[1723555879431,6.4218,146.47,146.4,0.12549]
[1723555879640,6.8279,146.46,146.42,6.8296]
[1723555879840,6.8278,146.46,146.44,0.12549]
[1723555880008,6.4218,146.47,146.44,0.12549]
[1723555880207,6.8276,146.47,146.44,0.12549]
[1723555880409,7.6452459,146.49,146.45,6.828]
[1723555880647,7.6452459,146.49,146.46,45.12549]
[1723555880648,0.8187459,146.49,146.46,45.12549]
[1723555880945,6.828,146.46,146.43,0.12549]
[1723555881126,6.8278,146.46,146.43,0.25098]
[1723555881327,0.8187459,146.49,146.44,0.12549]
[1723555881644,0.8187459,146.49,146.43,45.12549]
[1723555881830,6.8281,146.46,146.43,45.12549]
[1723555882011,6.8281,146.46,146.43,0.25098]
[1723555882208,6.8283,146.45,146.42,45.12549]
[1723555882416,6.8279,146.46,146.42,0.12549]
[1723555882628,17.0677,146.48,146.42,0.25098]
[1723555882827,0.8187459,146.49,146.43,0.12549]
[1723555883149,6.8278,146.46,146.42,17.19929]
[1723555883352,6.8282,146.45,146.43,45.0]
[1723555883517,48.76734146,146.48,146.4,0.12549]
[1723555883717,48.76734146,146.48,146.26,27.13696335]
[1723555883718,6.8298,146.42,146.38,6.8314]
[1723555884019,64.1317,146.45,146.36,17.0808]
[1723555884230,6.8309,146.4,146.36,23.9132]
[1723555884546,6.8298,146.42,146.38,6.8314]
[1723555885023,6.8301,146.41,146.36,23.9131]
[1723555885237,6.8297,146.42,146.36,17.0808]
[1723555885562,1.70770275,146.44,146.36,23.9131]
[1723555885751,6.8311,146.39,146.33,17.0841]
[1723555886246,20.0,146.44,146.36,17.0811]
[1723555886449,6.8301,146.41,146.37,6.8315]
[1723555886744,22.1954,146.45,146.4,6.8304]
[1723555886950,22.1954,146.45,146.32,17.21069]
[1723555886951,17.074,146.43,146.32,17.21069]
[1723555887113,20.0,146.44,146.39,6.831]
[1723555887315,69.2554,146.45,146.4,45.0]
[1723555887710,6.8292,146.43,146.4,45.0]
[1723555887913,47.06,146.48,146.43,0.12549]
[1723555888150,6.8276,146.47,146.43,45.0]
[1723555888323,23.8709459,146.49,146.43,45.0]
[1723555888324,6.8279,146.46,146.44,0.12549]
[1723555888829,6.8282,146.45,146.44,0.12549]
[1723555889155,6.8287,146.44,146.43,45.0]
[1723555889313,6.8283,146.45,146.43,45.0]
[1723555889648,47.06,146.48,146.36,17.081]
[1723555889847,6.8279,146.46,146.41,6.8297]
[1723555890069,23.8709459,146.49,146.43,6.8291]
[1723555890565,6.8269,146.48,146.43,6.8291]
[1723555890720,6.8269,146.48,146.44,6.8285]
[1723555891042,6.8274,146.47,146.43,0.12549]
[1723555891245,6.8274,146.47,146.44,0.12549]
[1723555891449,0.8187459,146.49,146.44,0.12549]
[1723555891611,6.8268,146.48,146.44,0.25098]
[1723555891855,0.8187459,146.49,146.43,45.0]
[1723555892078,6.8284,146.45,146.43,45.0]
[1723555892787,0.8187459,146.49,146.39,6.8309]
[1723555892788,6.8288,146.44,146.39,6.8309]
[1723555892964,6.8288,146.44,146.37,17.0794]
[1723555893161,6.8283,146.45,146.4,6.8302]
[1723555893358,64.1277,146.48,146.39,17.0768]
[1723555893656,6.8279,146.46,146.41,6.83]
[1723555893878,47.06,146.48,146.41,17.0745]
[1723555894080,6.8274,146.47,146.43,6.8289]
[1723555894270,6.8274,146.47,146.44,45.25098]
[1723555894471,0.8187459,146.49,146.45,0.12549]
[1723555894780,0.8187459,146.49,146.45,17.19559]
[1723555894971,6.8273,146.47,146.46,45.0]
[1723555895279,6.8273,146.47,146.46,0.12549]
[1723555895664,0.8187459,146.49,146.44,45.12549]
[1723555896190,6.8276,146.47,146.44,45.0]
[1723555896355,6.8276,146.47,146.43,45.12549]
[1723555896681,0.8187459,146.49,146.43,45.12549]
[1723555896887,0.8187459,146.49,146.45,0.12549]
[1723555897094,6.8282,146.46,146.44,0.25098]
[1723555897381,6.8282,146.45,146.44,0.25098]